[Event "2025 Chess.com Botwinnik Rapid toernooi"]
[Site "Zoetermeer, Netherlands"]
[Date "????.??.??"]
[Round "3.4"]
[White "Makhmud, Adi"]
[Black "Tjiam, Dharma"]
[Result "1/2-1/2"]
[TimeControl "15+5"]
[BlackTitle "IM"]
[WhiteFideId "9078113"]
[BlackFideId "6383751"]
[WhiteElo "2076"]
[BlackElo "2364"]

1. e4 {[%clk 00:15:07]} {[%emt 00:00:03]} d6 {[%clk 00:15:08]} {[%emt
00:00:02]} 2. d4 {[%clk 00:15:10]} {[%emt 00:00:02]} Nf6 {[%clk 00:15:12]}
{[%emt 00:00:01]} 3. Nc3 {[%clk 00:15:14]} {[%emt 00:00:02]} g6 {[%clk
00:15:16]} 4. Nf3 {[%clk 00:15:07]} {[%emt 00:00:12]} Bg7 {[%clk 00:15:13]}
{[%emt 00:00:07]} 5. Be2 {[%clk 00:14:57]} {[%emt 00:00:15]} O-O {[%clk
00:15:16]} {[%emt 00:00:02]} 6. h3 {[%clk 00:14:58]} {[%emt 00:00:05]} c6
{[%clk 00:15:18]} {[%emt 00:00:02]} 7. a4 {[%clk 00:14:51]} {[%emt 00:00:12]}
Qc7 {[%clk 00:15:20]} {[%emt 00:00:02]} 8. Bf4 {[%clk 00:13:43]} {[%emt
00:01:12]} Nbd7 {[%clk 00:14:47]} {[%emt 00:00:39]} 9. e5 {[%clk 00:13:09]}
{[%emt 00:00:40]} Ne8 {[%clk 00:11:57]} {[%emt 00:02:55]} 10. exd6 {[%clk
00:12:40]} {[%emt 00:00:34]} exd6 {[%clk 00:12:00]} {[%emt 00:00:02]} 11. O-O
{[%clk 00:12:29]} {[%emt 00:00:15]} Ndf6 {[%clk 00:12:01]} {[%emt 00:00:04]} 12.
Re1 {[%clk 00:11:56]} {[%emt 00:00:39]} Bf5 {[%clk 00:11:00]} {[%emt 00:01:06]}
13. Bd3 {[%clk 00:11:40]} {[%emt 00:00:21]} Qd7 {[%clk 00:10:28]} {[%emt
00:00:37]} 14. d5 {[%clk 00:09:51]} {[%emt 00:01:55]} c5 {[%clk 00:09:30]}
{[%emt 00:01:03]} 15. Nb5 {[%clk 00:07:29]} {[%emt 00:02:27]} Bxd3 {[%clk
00:08:18]} {[%emt 00:01:17]} 16. Qxd3 {[%clk 00:07:27]} {[%emt 00:00:06]} a6
{[%clk 00:08:21]} {[%emt 00:00:02]} 17. Nc3 {[%clk 00:05:57]} {[%emt 00:01:35]}
Nc7 {[%clk 00:08:12]} {[%emt 00:00:14]} 18. Re2 {[%clk 00:05:33]} {[%emt
00:00:29]} b5 {[%clk 00:07:37]} {[%emt 00:00:40]} 19. Rae1 {[%clk 00:05:35]}
{[%emt 00:00:03]} Rfe8 {[%clk 00:07:40]} {[%emt 00:00:02]} 20. axb5 {[%clk
00:04:12]} {[%emt 00:01:28]} axb5 {[%clk 00:07:43]} {[%emt 00:00:02]} 21. Rxe8+
{[%clk 00:04:13]} {[%emt 00:00:03]} Rxe8 {[%clk 00:06:39]} {[%emt 00:01:09]} 22.
Rxe8+ {[%clk 00:03:22]} {[%emt 00:00:56]} Nfxe8 {[%clk 00:06:40]} {[%emt
00:00:04]} 23. Nd1 {[%clk 00:02:03]} {[%emt 00:01:25]} Nf6 {[%clk 00:05:22]}
{[%emt 00:01:22]} 24. c4 {[%clk 00:01:43]} {[%emt 00:00:25]} bxc4 {[%clk
00:05:20]} {[%emt 00:00:07]} 25. Qxc4 {[%clk 00:01:46]} {[%emt 00:00:02]} Ncxd5
{[%clk 00:04:45]} {[%emt 00:00:40]} 26. Bd2 {[%clk 00:01:46]} {[%emt 00:00:05]}
h6 {[%clk 00:04:27]} {[%emt 00:00:22]} 27. Nc3 {[%clk 00:01:42]} {[%emt
00:00:09]} Nc7 {[%clk 00:04:11]} {[%emt 00:00:20]} 28. Ne1 {[%clk 00:01:08]}
{[%emt 00:00:40]} Qe6 {[%clk 00:04:02]} {[%emt 00:00:14]} 29. Qxe6 {[%clk
00:01:04]} {[%emt 00:00:10]} Nxe6 {[%clk 00:04:02]} {[%emt 00:00:04]} 30. Nc2
{[%clk 00:00:53]} {[%emt 00:00:16]} d5 {[%clk 00:03:28]} {[%emt 00:00:40]} 31.
b4 {[%clk 00:00:32]} {[%emt 00:00:26]} d4 {[%clk 00:03:29]} {[%emt 00:00:03]}
32. Nb5 {[%clk 00:00:35]} {[%emt 00:00:03]} Ne4 {[%clk 00:03:32]} {[%emt
00:00:02]} 33. Be1 {[%clk 00:00:16]} {[%emt 00:00:24]} d3 {[%clk 00:03:17]}
{[%emt 00:00:21]} 34. Ne3 {[%clk 00:00:17]} {[%emt 00:00:04]} d2 {[%clk
00:03:18]} {[%emt 00:00:04]} 35. Bxd2 {[%clk 00:00:21]} {[%emt 00:00:01]} Nxd2
{[%clk 00:03:22]} {[%emt 00:00:02]} 36. bxc5 {[%clk 00:00:24]} {[%emt
00:00:02]} Nxc5 {[%clk 00:03:25]} {[%emt 00:00:02]} 37. Nc7 {[%clk 00:00:21]}
{[%emt 00:00:08]} Nde4 {[%clk 00:03:09]} {[%emt 00:00:21]} 38. Kf1 {[%clk
00:00:14]} {[%emt 00:00:12]} Nc3 {[%clk 00:03:09]} {[%emt 00:00:05]} 39. Ne8
{[%clk 00:00:11]} {[%emt 00:00:09]} Kf8 {[%clk 00:03:07]} {[%emt 00:00:06]} 40.
Nd6 {[%clk 00:00:15]} {[%emt 00:00:02]} Ke7 {[%clk 00:03:07]} {[%emt 00:00:04]}
41. Ndc4 {[%clk 00:00:17]} {[%emt 00:00:03]} Ke6 {[%clk 00:03:07]} {[%emt
00:00:05]} 42. g3 {[%clk 00:00:07]} {[%emt 00:00:15]} Nd3 {[%clk 00:02:59]}
{[%emt 00:00:13]} 43. Kg2 {[%clk 00:00:07]} {[%emt 00:00:06]} Bd4 {[%clk
00:02:55]} {[%emt 00:00:08]} 44. Kf3 {[%clk 00:00:10]} {[%emt 00:00:02]} Ne5+
{[%clk 00:02:56]} {[%emt 00:00:04]} 45. Nxe5 {[%clk 00:00:14]} {[%emt
00:00:01]} Bxe5 {[%clk 00:02:58]} {[%emt 00:00:03]} 46. Ng4 {[%clk 00:00:09]}
{[%emt 00:00:10]} Bg7 {[%clk 00:03:00]} {[%emt 00:00:03]} 47. Ne3 {[%clk
00:00:09]} {[%emt 00:00:04]} Nb5 {[%clk 00:02:51]} {[%emt 00:00:15]} 48. Ke4
{[%clk 00:00:12]} {[%emt 00:00:02]} Nd6+ {[%clk 00:02:51]} {[%emt 00:00:05]} 49.
Kd3 {[%clk 00:00:14]} {[%emt 00:00:03]} h5 {[%clk 00:02:39]} {[%emt 00:00:16]}
50. Ng2 {[%clk 00:00:15]} {[%emt 00:00:04]} Kd5 {[%clk 00:02:29]} {[%emt
00:00:15]} 51. Ne3+ {[%clk 00:00:15]} {[%emt 00:00:06]} Ke5 {[%clk 00:02:30]}
{[%emt 00:00:04]} 52. f4+ {[%clk 00:00:16]} {[%emt 00:00:04]} Ke6 {[%clk
00:02:34]} {[%emt 00:00:02]} 53. g4 {[%clk 00:00:18]} {[%emt 00:00:03]} f5
{[%clk 00:02:27]} {[%emt 00:00:12]} 54. Ke2 {[%clk 00:00:16]} {[%emt 00:00:07]}
Bd4 {[%clk 00:02:19]} {[%emt 00:00:13]} 55. gxf5+ {[%clk 00:00:19]} {[%emt
00:00:03]} Nxf5 {[%clk 00:02:18]} {[%emt 00:00:05]} 56. Ng2 {[%clk 00:00:20]}
{[%emt 00:00:03]} Bf6 {[%clk 00:02:19]} {[%emt 00:00:05]} 57. Kd3 {[%clk
00:00:12]} {[%emt 00:00:13]} Nd6 {[%clk 00:02:14]} {[%emt 00:00:09]} 58. Ne1
{[%clk 00:00:09]} {[%emt 00:00:08]} Kf5 {[%clk 00:02:11]} {[%emt 00:00:08]} 59.
Ke3 {[%clk 00:00:13]} {[%emt 00:00:02]} Bd8 {[%clk 00:02:03]} {[%emt 00:00:13]}
60. Kf3 {[%clk 00:00:10]} {[%emt 00:00:08]} Bc7 {[%clk 00:01:55]} {[%emt
00:00:12]} 61. Ng2 {[%clk 00:00:13]} {[%emt 00:00:03]} Nc4 {[%clk 00:01:57]}
{[%emt 00:00:03]} 62. Nh4+ {[%clk 00:00:16]} {[%emt 00:00:02]} Kf6 {[%clk
00:02:00]} {[%emt 00:00:02]} 63. Ke4 {[%clk 00:00:15]} {[%emt 00:00:05]} Nd6+
{[%clk 00:02:02]} {[%emt 00:00:04]} 64. Kd5 {[%clk 00:00:07]} {[%emt 00:00:13]}
Nf5 {[%clk 00:02:05]} {[%emt 00:00:02]} 65. Ng2 {[%clk 00:00:12]} Ng3 {[%clk
00:01:52]} {[%emt 00:00:18]} 66. Kd4 {[%clk 00:00:06]} {[%emt 00:00:11]} Bb6+
{[%clk 00:01:52]} {[%emt 00:00:05]} 67. Kd3 {[%clk 00:00:10]} {[%emt 00:00:01]}
Bf2 {[%clk 00:01:46]} {[%emt 00:00:11]} 68. Nh4 {[%clk 00:00:09]} {[%emt
00:00:05]} Nf5 {[%clk 00:01:29]} {[%emt 00:00:23]} 69. Ng2 {[%clk 00:00:10]}
{[%emt 00:00:04]} Ke6 {[%emt 00:00:11]} 70. Ke4 Bb6 {[%clk 00:01:25]} {[%emt
00:00:03]} 71. Ne1 {[%clk 00:00:14]} {[%emt 00:00:05]} Nd6+ {[%clk 00:01:21]}
{[%emt 00:00:10]} 72. Kf3 {[%clk 00:00:16]} {[%emt 00:00:02]} Kf5 {[%clk
00:01:18]} {[%emt 00:00:09]} 73. Ng2 {[%clk 00:00:19]} {[%emt 00:00:02]} Nc4
{[%clk 00:01:21]} {[%emt 00:00:01]} 74. Nh4+ {[%clk 00:00:21]} {[%emt
00:00:02]} Kf6 {[%clk 00:01:25]} {[%emt 00:00:01]} 75. Ng2 {[%clk 00:00:17]}
{[%emt 00:00:10]} Bd8 {[%clk 00:01:18]} {[%emt 00:00:12]} 76. Ke4 {[%clk
00:00:15]} {[%emt 00:00:06]} Nd6+ {[%clk 00:01:16]} {[%emt 00:00:08]} 77. Kf3
{[%clk 00:00:12]} {[%emt 00:00:08]} Nf5 {[%clk 00:01:08]} {[%emt 00:00:12]} 78.
Ke4 {[%clk 00:00:12]} {[%emt 00:00:06]} Ke6 {[%clk 00:01:12]} {[%emt 00:00:02]}
79. Ne1 {[%clk 00:00:09]} {[%emt 00:00:08]} Bf6 {[%clk 00:01:12]} {[%emt
00:00:05]} 80. Ng2 {[%clk 00:00:07]} {[%emt 00:00:07]} Kd6 {[%clk 00:01:16]} 81.
Ne1 {[%clk 00:00:07]} Kc5 {[%clk 00:01:20]} {[%emt 00:00:04]} 82. Nd3+ {[%clk
00:00:11]} {[%emt 00:00:04]} Kc4 {[%clk 00:01:23]} {[%emt 00:00:02]} 83. Ne5+
{[%clk 00:00:16]} Bxe5 {[%clk 00:01:25]} {[%emt 00:00:02]} 84. Kxe5 {[%clk
00:00:08]} {[%emt 00:00:13]} Kd3 {[%clk 00:01:27]} 85. Kf6 {[%clk 00:00:12]}
{[%emt 00:00:05]} Nh4 {[%clk 00:01:25]} 86. Kg5 {[%clk 00:00:14]} {[%emt
00:00:08]} Ng2 {[%clk 00:01:28]} 87. f5 {[%clk 00:00:14]} {[%emt 00:00:07]}
gxf5 {[%clk 00:01:32]} 88. Kxf5 {[%clk 00:00:18]} {[%emt 00:00:02]} Ke3 {[%emt
00:00:19]} 89. h4 {[%clk 00:00:16]} Nf4 {[%emt 00:00:22]} 90. Ke5 {[%clk
00:00:19]} Kf3 {[%clk 00:00:38]} 91. Kf5 {[%clk 00:00:23]} {[%emt 00:00:56]}
Nd5 {[%clk 00:00:36]} 92. Kg5 {[%clk 00:00:26]} {[%emt 00:00:09]} Nf6 {[%clk
00:00:39]} 93. Kxf6 {[%clk 00:00:26]} {[%emt 00:00:06]} Kg4 {[%clk 00:00:47]}
{[%emt 00:00:06]} 94. Ke5 {[%clk 00:00:32]} Kxh4 {[%clk 00:00:51]} {[%emt
00:00:01]} 95. Kf4 {[%clk 00:00:36]} 1/2-1/2

[Event "2025 Chess.com Botwinnik Rapid toernooi"]
[Site "Zoetermeer, Netherlands"]
[Date "????.??.??"]
[Round "3.5"]
[White "Smeets, Kobe"]
[Black "Albertus, Bram"]
[Result "1-0"]
[TimeControl "15+5"]
[WhiteTitle "FM"]
[WhiteFideId "8659420"]
[BlackFideId "8438727"]
[WhiteElo "2364"]
[BlackElo "2068"]

1. e4 {[%clk 00:15:08]} {[%emt 00:00:02]} c6 {[%clk 00:15:01]} {[%emt
00:00:10]} 2. Nc3 {[%clk 00:15:11]} {[%emt 00:00:02]} d5 {[%clk 00:15:04]}
{[%emt 00:00:02]} 3. Nf3 {[%clk 00:15:15]} Bg4 {[%clk 00:15:05]} {[%emt
00:00:04]} 4. h3 {[%clk 00:15:19]} {[%emt 00:00:01]} Bxf3 {[%clk 00:15:08]}
{[%emt 00:00:02]} 5. Qxf3 {[%clk 00:15:23]} {[%emt 00:00:01]} e6 {[%clk
00:15:11]} {[%emt 00:00:02]} 6. d4 {[%clk 00:15:27]} {[%emt 00:00:01]} Nf6
{[%clk 00:15:13]} {[%emt 00:00:04]} 7. Be2 {[%clk 00:15:30]} {[%emt 00:00:01]}
dxe4 {[%clk 00:13:38]} {[%emt 00:01:39]} 8. Qe3 {[%clk 00:15:34]} Nbd7 {[%clk
00:13:26]} {[%emt 00:00:17]} 9. Nxe4 {[%clk 00:15:34]} {[%emt 00:00:05]} Nxe4
{[%clk 00:13:23]} {[%emt 00:00:09]} 10. Qxe4 {[%clk 00:15:38]} Nf6 {[%clk
00:13:24]} {[%emt 00:00:04]} 11. Qd3 {[%clk 00:15:42]} Bd6 {[%clk 00:13:08]}
{[%emt 00:00:21]} 12. O-O {[%clk 00:15:44]} {[%emt 00:00:03]} O-O {[%clk
00:11:23]} {[%emt 00:01:50]} 13. Rd1 {[%clk 00:15:21]} {[%emt 00:00:27]} Qc7
{[%clk 00:11:19]} {[%emt 00:00:10]} 14. Qf3 {[%clk 00:15:06]} {[%emt 00:00:19]}
e5 {[%clk 00:11:07]} {[%emt 00:00:18]} 15. Bg5 {[%clk 00:14:35]} {[%emt
00:00:36]} Nd5 {[%clk 00:09:49]} {[%emt 00:01:23]} 16. Bc4 {[%clk 00:11:40]}
{[%emt 00:02:59]} Nb6 {[%clk 00:08:56]} {[%emt 00:00:57]} 17. Bb3 {[%clk
00:11:10]} {[%emt 00:00:36]} exd4 {[%clk 00:08:29]} {[%emt 00:00:33]} 18. Rxd4
{[%clk 00:11:14]} Be5 {[%clk 00:06:09]} {[%emt 00:02:25]} 19. Rh4 {[%clk
00:11:15]} {[%emt 00:00:02]} g6 {[%clk 00:06:03]} {[%emt 00:00:11]} 20. Re1
{[%clk 00:10:48]} {[%emt 00:00:30]} Rae8 {[%clk 00:05:50]} {[%emt 00:00:22]} 21.
Rhe4 {[%clk 00:10:50]} {[%emt 00:00:02]} Bh2+ {[%clk 00:04:48]} {[%emt
00:01:07]} 22. Kh1 {[%clk 00:10:55]} Rxe4 {[%clk 00:04:52]} {[%emt 00:00:01]}
23. Qxe4 {[%clk 00:10:26]} {[%emt 00:00:34]} Nd5 {[%clk 00:02:02]} {[%emt
00:02:55]} 24. Bh6 {[%clk 00:08:47]} {[%emt 00:01:43]} Nf6 {[%clk 00:01:58]}
{[%emt 00:00:10]} 25. Qe7 {[%clk 00:08:50]} {[%emt 00:00:02]} 1-0

[Event "2025 Chess.com Botwinnik Rapid toernooi"]
[Site "Zoetermeer, Netherlands"]
[Date "????.??.??"]
[Round "3.6"]
[White "Grochal, Joey"]
[Black "Li-Behn, Tobias"]
[Result "1/2-1/2"]
[TimeControl "15+5"]
[WhiteTitle "FM"]
[WhiteFideId "7926875"]
[BlackFideId "8747783"]
[WhiteElo "2272"]
[BlackElo "1992"]

1. d4 {[%clk 00:15:09]} f5 {[%clk 00:15:05]} {[%emt 00:00:06]} 2. c4 {[%clk
00:15:12]} {[%emt 00:00:02]} Nf6 {[%clk 00:15:08]} {[%emt 00:00:02]} 3. Nf3
{[%clk 00:15:12]} {[%emt 00:00:05]} e6 {[%clk 00:15:11]} {[%emt 00:00:01]} 4.
a3 {[%clk 00:15:13]} {[%emt 00:00:05]} d5 {[%clk 00:15:14]} {[%emt 00:00:02]} 5.
Nc3 {[%clk 00:15:15]} {[%emt 00:00:03]} c6 {[%clk 00:15:17]} {[%emt 00:00:02]}
6. Bf4 {[%clk 00:15:08]} {[%emt 00:00:12]} Bd6 {[%clk 00:15:17]} {[%emt
00:00:05]} 7. e3 {[%clk 00:14:35]} {[%emt 00:00:38]} O-O {[%clk 00:15:19]}
{[%emt 00:00:03]} 8. Ne5 {[%clk 00:13:57]} {[%emt 00:00:44]} Qe7 {[%clk
00:14:51]} {[%emt 00:00:33]} 9. Bd3 {[%clk 00:13:11]} {[%emt 00:00:51]} b6
{[%clk 00:14:17]} {[%emt 00:00:40]} 10. h3 {[%clk 00:12:50]} {[%emt 00:00:26]}
Nfd7 {[%clk 00:13:45]} {[%emt 00:00:36]} 11. cxd5 {[%clk 00:11:59]} {[%emt
00:00:56]} Bxe5 {[%clk 00:13:19]} {[%emt 00:00:31]} 12. dxe5 {[%clk 00:10:50]}
{[%emt 00:01:13]} exd5 {[%clk 00:13:19]} {[%emt 00:00:05]} 13. Bc2 {[%clk
00:10:42]} {[%emt 00:00:14]} Bb7 {[%clk 00:11:50]} {[%emt 00:01:34]} 14. g4
{[%clk 00:10:41]} {[%emt 00:00:05]} Nxe5 {[%clk 00:10:07]} {[%emt 00:01:48]} 15.
gxf5 {[%clk 00:10:40]} {[%emt 00:00:06]} Rd8 {[%clk 00:09:39]} {[%emt
00:00:34]} 16. Qh5 {[%clk 00:10:20]} {[%emt 00:00:25]} Qe8 {[%clk 00:09:13]}
{[%emt 00:00:31]} 17. Qxe8+ {[%clk 00:09:30]} {[%emt 00:00:55]} Rxe8 {[%clk
00:09:17]} {[%emt 00:00:01]} 18. O-O-O {[%clk 00:09:31]} {[%emt 00:00:04]} Na6
{[%clk 00:08:57]} {[%emt 00:00:24]} 19. e4 {[%clk 00:09:07]} {[%emt 00:00:30]}
Rad8 {[%clk 00:08:11]} {[%emt 00:00:52]} 20. exd5 {[%clk 00:09:10]} {[%emt
00:00:02]} cxd5 {[%clk 00:08:07]} {[%emt 00:00:07]} 21. Rhe1 {[%clk 00:08:41]}
{[%emt 00:00:35]} Nf7 {[%clk 00:07:11]} {[%emt 00:01:01]} 22. Rxe8+ {[%clk
00:08:42]} {[%emt 00:00:03]} Rxe8 {[%clk 00:07:15]} {[%emt 00:00:01]} 23. Nxd5
{[%clk 00:08:45]} {[%emt 00:00:03]} Nc5 {[%clk 00:07:07]} {[%emt 00:00:13]} 24.
b4 {[%clk 00:07:09]} {[%emt 00:01:41]} Ne4 {[%clk 00:06:25]} {[%emt 00:00:48]}
25. Nc7 {[%clk 00:06:41]} {[%emt 00:00:32]} Re7 {[%clk 00:05:50]} {[%emt
00:00:40]} 26. Bb3 {[%clk 00:06:33]} {[%emt 00:00:14]} g5 {[%clk 00:04:44]}
{[%emt 00:01:11]} 27. fxg6 {[%clk 00:04:57]} {[%emt 00:01:41]} hxg6 {[%clk
00:04:32]} {[%emt 00:00:16]} 28. Re1 {[%clk 00:04:59]} {[%emt 00:00:03]} Rd7
{[%clk 00:03:45]} {[%emt 00:00:52]} 29. f3 {[%clk 00:04:28]} {[%emt 00:00:37]}
Nf2 {[%clk 00:03:16]} {[%emt 00:00:33]} 30. Re8+ {[%clk 00:03:56]} {[%emt
00:00:37]} Kg7 {[%clk 00:02:36]} {[%emt 00:00:45]} 31. Ne6+ {[%clk 00:02:49]}
{[%emt 00:01:13]} Kf6 {[%clk 00:01:42]} {[%emt 00:00:59]} 32. Bd2 {[%clk
00:02:49]} {[%emt 00:00:05]} Nd3+ {[%clk 00:01:31]} {[%emt 00:00:16]} 33. Kb1
{[%clk 00:02:14]} {[%emt 00:00:39]} Bxf3 {[%clk 00:01:28]} {[%emt 00:00:09]} 34.
Bc3+ {[%clk 00:02:13]} {[%emt 00:00:06]} Nde5 {[%clk 00:01:24]} {[%emt
00:00:09]} 35. Nd4 {[%clk 00:01:41]} {[%emt 00:00:37]} Be4+ {[%clk 00:01:08]}
{[%emt 00:00:21]} 36. Ka2 {[%clk 00:01:34]} {[%emt 00:00:12]} Re7 {[%clk
00:00:45]} {[%emt 00:00:27]} 37. Rxe7 {[%clk 00:01:03]} {[%emt 00:00:36]} Kxe7
{[%clk 00:00:48]} {[%emt 00:00:02]} 38. Nb5 {[%clk 00:01:07]} a6 {[%clk
00:00:39]} {[%emt 00:00:14]} 39. Nc7 {[%clk 00:01:10]} {[%emt 00:00:02]} Nd3
{[%clk 00:00:32]} {[%emt 00:00:13]} 40. Nd5+ {[%clk 00:00:50]} {[%emt
00:00:24]} Bxd5 {[%clk 00:00:16]} {[%emt 00:00:21]} 41. Bxd5 {[%clk 00:00:54]}
{[%emt 00:00:02]} Nf4 {[%clk 00:00:18]} {[%emt 00:00:03]} 42. Bb7 {[%clk
00:00:45]} {[%emt 00:00:13]} a5 {[%clk 00:00:14]} {[%emt 00:00:09]} 43. bxa5
{[%clk 00:00:49]} bxa5 {[%clk 00:00:18]} 44. Bxa5 {[%clk 00:00:53]} {[%emt
00:00:01]} Nxh3 {[%clk 00:00:22]} {[%emt 00:00:01]} 45. Bb6 {[%clk 00:00:50]}
{[%emt 00:00:08]} 1/2-1/2

[Event "2025 Chess.com Botwinnik Rapid toernooi"]
[Site "Zoetermeer, Netherlands"]
[Date "????.??.??"]
[Round "3.7"]
[White "Gloudemans, Luuk"]
[Black "Witte, Phoebe"]
[Result "1-0"]
[TimeControl "15+5"]
[WhiteFideId "8026282"]
[BlackFideId "8956794"]
[WhiteElo "1785"]
[BlackElo "1615"]

1. d3 {[%clk 00:15:03]} {[%emt 00:00:07]} Nf6 {[%clk 00:15:06]} {[%emt
00:00:04]} 2. e4 {[%clk 00:14:59]} {[%emt 00:00:09]} d6 {[%clk 00:14:55]}
{[%emt 00:00:16]} 3. Nf3 {[%clk 00:14:55]} {[%emt 00:00:09]} e6 {[%clk
00:14:55]} {[%emt 00:00:05]} 4. c3 {[%clk 00:14:51]} {[%emt 00:00:08]} d5
{[%clk 00:14:00]} {[%emt 00:01:00]} 5. Nbd2 {[%clk 00:14:40]} {[%emt 00:00:16]}
Nbd7 {[%clk 00:13:58]} {[%emt 00:00:07]} 6. Qc2 {[%clk 00:14:42]} {[%emt
00:00:02]} dxe4 {[%clk 00:13:50]} {[%emt 00:00:13]} 7. dxe4 {[%clk 00:14:45]}
{[%emt 00:00:02]} Be7 {[%clk 00:13:49]} {[%emt 00:00:06]} 8. Be2 {[%clk
00:14:27]} {[%emt 00:00:22]} e5 {[%clk 00:12:54]} {[%emt 00:01:01]} 9. Nf1
{[%clk 00:14:01]} {[%emt 00:00:32]} b6 {[%clk 00:12:13]} {[%emt 00:00:46]} 10.
Ng3 {[%clk 00:13:55]} {[%emt 00:00:11]} Bb7 {[%clk 00:12:07]} {[%emt 00:00:10]}
11. O-O {[%clk 00:13:51]} {[%emt 00:00:08]} O-O {[%clk 00:12:04]} {[%emt
00:00:09]} 12. h3 {[%clk 00:13:41]} {[%emt 00:00:15]} Nc5 {[%clk 00:11:51]}
{[%emt 00:00:19]} 13. Nd2 {[%clk 00:11:21]} {[%emt 00:02:25]} Bd6 {[%clk
00:11:12]} {[%emt 00:00:44]} 14. b4 {[%clk 00:11:21]} {[%emt 00:00:05]} Ne6
{[%clk 00:10:49]} {[%emt 00:00:28]} 15. Nc4 {[%clk 00:10:36]} {[%emt 00:00:49]}
Nf4 {[%clk 00:10:14]} {[%emt 00:00:40]} 16. Bf3 {[%clk 00:09:45]} {[%emt
00:00:57]} Rb8 {[%clk 00:09:52]} {[%emt 00:00:28]} 17. Bxf4 {[%clk 00:09:38]}
{[%emt 00:00:11]} exf4 {[%clk 00:09:50]} {[%emt 00:00:06]} 18. Nf5 {[%clk
00:09:41]} {[%emt 00:00:03]} Re8 {[%clk 00:07:23]} {[%emt 00:02:32]} 19. Rfe1
{[%clk 00:08:45]} {[%emt 00:01:01]} g6 {[%clk 00:06:01]} {[%emt 00:01:27]} 20.
Nfxd6 {[%clk 00:08:13]} {[%emt 00:00:37]} cxd6 {[%clk 00:05:40]} {[%emt
00:00:25]} 21. Rad1 {[%clk 00:08:10]} {[%emt 00:00:09]} Qe7 {[%clk 00:02:52]}
{[%emt 00:02:53]} 22. Nxd6 {[%clk 00:07:26]} {[%emt 00:00:49]} Red8 {[%clk
00:02:25]} {[%emt 00:00:32]} 23. Nxb7 {[%clk 00:06:36]} {[%emt 00:00:55]} Rxb7
{[%clk 00:00:59]} {[%emt 00:01:31]} 24. Rxd8+ {[%clk 00:06:12]} {[%emt
00:00:28]} Qxd8 {[%clk 00:00:59]} {[%emt 00:00:05]} 25. e5 {[%clk 00:06:15]}
{[%emt 00:00:03]} Nd5 {[%clk 00:00:51]} {[%emt 00:00:13]} 26. Rd1 {[%clk
00:05:24]} {[%emt 00:00:55]} Rd7 {[%clk 00:00:53]} {[%emt 00:00:03]} 27. Bg4
{[%clk 00:05:00]} {[%emt 00:00:29]} Re7 {[%clk 00:00:40]} {[%emt 00:00:18]} 28.
Qe4 {[%clk 00:04:54]} {[%emt 00:00:11]} f5 {[%clk 00:00:33]} {[%emt 00:00:13]}
29. Qc4 {[%clk 00:04:30]} {[%emt 00:00:30]} Kg7 {[%clk 00:00:15]} {[%emt
00:00:23]} 30. Rxd5 {[%clk 00:04:18]} {[%emt 00:00:16]} Qg8 {[%clk 00:00:14]}
{[%emt 00:00:07]} 31. Qc6 {[%clk 00:03:57]} {[%emt 00:00:26]} Qf7 {[%clk
00:00:08]} {[%emt 00:00:11]} 32. Bf3 {[%clk 00:03:42]} {[%emt 00:00:20]} Rc7
{[%clk 00:00:12]} {[%emt 00:00:01]} 33. e6 {[%clk 00:03:11]} {[%emt 00:00:36]}
Qe7 {[%clk 00:00:08]} {[%emt 00:00:09]} 34. Qxc7 {[%clk 00:03:03]} {[%emt
00:00:12]} Qxc7 {[%clk 00:00:11]} {[%emt 00:00:02]} 35. Rd7+ {[%clk 00:03:07]}
{[%emt 00:00:01]} Qxd7 {[%clk 00:00:14]} {[%emt 00:00:02]} 36. exd7 {[%clk
00:03:11]} {[%emt 00:00:01]} 1-0